bitfinex/quotes_SOLUSD_20220113
["timestamp","ask_amount","ask_price","bid_price","bid_amount"]
[1642062037640,46.58111174,152.39,152.3,26.94497546]
[1642062037842,28.18657199,152.38,152.3,20.69497546]
[1642062038142,28.18657199,152.38,152.3,25.3457]
[1642062038341,28.18657199,152.38,152.3,19.3457]
[1642062038342,30.81157199,152.38,152.3,19.3457]
[1642062038743,30.81157199,152.38,152.3,19.8557]
[1642062038942,28.18657199,152.38,152.3,19.8557]
[1642062039143,28.18657199,152.38,152.31,2.625]
[1642062039343,28.18657199,152.38,152.33,9.8436]
[1642062040542,28.43657199,152.38,152.31,9.8447]
[1642062040743,28.43657199,152.38,152.3,18.385]
[1642062041146,28.18657199,152.38,152.31,66.12]
[1642062041543,28.18657199,152.38,152.32,9.8444]
[1642062041945,28.18657199,152.38,152.32,10.1044]
[1642062042754,28.43657199,152.38,152.32,10.1044]
[1642062043349,28.43657199,152.38,152.32,9.8444]
[1642062043751,28.43657199,152.38,152.3,19.3453]
[1642062043951,31.06157199,152.38,152.3,9.5]
[1642062045851,31.06157199,152.38,152.3,19.3456]
[1642062047452,31.06157199,152.38,152.3,9.8456]
[1642062048052,40.90797199,152.38,152.28,12.4715]
[1642062048351,40.90797199,152.38,152.28,9.8465]
[1642062052359,40.65797199,152.38,152.28,9.8465]
[1642062053465,40.90797199,152.38,152.28,9.8465]
[1642062054965,40.90797199,152.38,152.26,19.3479]
[1642062055165,40.90797199,152.38,152.27,2.626]
[1642062055765,40.90797199,152.38,152.27,2.886]
[1642062055966,31.06157199,152.38,152.27,12.7333]
[1642062057066,30.81157199,152.38,152.27,12.7333]
[1642062057264,30.81157199,152.38,152.27,13.81703768]
[1642062057265,75.5073,152.37,152.27,13.81703768]
[1642062058468,75.7573,152.37,152.27,12.4733]
[1642062058669,75.7573,152.37,152.3,6.10119522]
[1642062059770,85.6043,152.37,152.3,6.10119522]
[1642062061276,10.097,152.37,152.3,6.10119522]
[1642062062475,10.097,152.37,152.29,9.8465]
[1642062063677,2.625,152.36,152.29,9.8465]
[1642062064080,2.875,152.36,152.29,9.8465]
[1642062064678,9.847,152.37,152.29,9.8465]
[1642062064879,28.18657199,152.38,152.3,2.625]
[1642062065077,28.18657199,152.38,152.3,12.4709]
[1642062065378,31.95125088,152.38,152.3,9.8459]
[1642062065576,31.95125088,152.38,152.31,2.625]
[1642062066177,38.03297199,152.38,152.31,2.625]
[1642062066576,38.28297199,152.38,152.31,2.625]
[1642062068106,0.25,152.38,152.3,9.8459]
[1642062068303,0.25,152.38,152.31,9.8452]
[1642062068502,121.16121174,152.39,152.31,9.8452]
[1642062068902,121.16121174,152.39,152.31,10.92893768]
[1642062069102,121.16121174,152.39,152.31,16.92893768]
[1642062069304,120.91121174,152.39,152.31,16.92893768]
[1642062069503,120.91121174,152.39,152.31,9.8452]
[1642062070504,120.91121174,152.39,152.31,16.92893768]
[1642062070704,121.16121174,152.39,152.31,16.92893768]
[1642062071004,121.16121174,152.39,152.31,15.8452]
[1642062071407,121.16121174,152.39,152.31,16.92893768]
[1642062071907,121.16121174,152.39,152.31,15.8452]
[1642062072211,121.16121174,152.39,152.31,16.92893768]
[1642062072506,121.16121174,152.39,152.31,17.18893768]
[1642062073607,120.91121174,152.39,152.31,17.18893768]
[1642062074009,120.91121174,152.39,152.31,17.43893768]
[1642062074815,120.91121174,152.39,152.32,2.625]
[1642062075013,120.91121174,152.39,152.33,9.8441]
[1642062076012,121.16121174,152.39,152.33,9.8441]
[1642062078616,46.83111174,152.39,152.33,9.8441]
[1642062078815,46.58111174,152.39,152.33,10.1041]
[1642062079015,46.58111174,152.39,152.34,9.5]
[1642062079215,46.58111174,152.39,152.36,9.8406]
[1642062079416,46.58111174,152.39,152.37,8.68939993]
[1642062079615,46.58111174,152.39,152.37,6.06439993]
[1642062080315,46.83111174,152.39,152.37,6.06439993]
[1642062080515,46.83111174,152.39,152.37,3.03219997]
[1642062080716,46.83111174,152.39,152.3,9.5]
[1642062081117,46.83111174,152.39,152.3,10.58398853]
[1642062081517,46.83111174,152.39,152.3,16.84398853]
[1642062081717,46.83111174,152.39,152.3,10.84398853]
[1642062082217,46.83111174,152.39,152.32,9.8449]
[1642062082622,49.45611174,152.39,152.32,9.8449]
[1642062083818,46.83111174,152.39,152.32,10.1049]
[1642062086620,46.83111174,152.39,152.32,9.8449]
[1642062087823,46.58111174,152.39,152.32,9.8449]
[1642062088021,46.58111174,152.39,152.32,10.1049]
[1642062088222,46.58111174,152.39,152.32,11.18608713]
[1642062089227,46.83111174,152.39,152.32,11.18608713]
[1642062089424,46.83111174,152.39,152.33,9.5]
[1642062089627,46.58111174,152.39,152.34,9.8433]
[1642062090037,46.58111174,152.39,152.34,10.1033]
[1642062092139,46.83111174,152.39,152.34,10.1033]
[1642062092539,46.58111174,152.39,152.34,10.3533]
[1642062092740,46.58111174,152.39,152.35,9.5]
[1642062092942,46.58111174,152.39,152.37,9.8412]
[1642062093162,46.58111174,152.39,152.38,6.06439993]
[1642062093661,46.58111174,152.39,152.31,10.58118713]
[1642062093862,46.58111174,152.39,152.31,9.8452]
[1642062094063,46.83111174,152.39,152.31,9.8452]
[1642062094868,2.625,152.38,152.31,9.8452]
[1642062095367,2.625,152.38,152.31,10.92638713]
[1642062095573,2.625,152.38,152.31,11.17638713]
[1642062095872,2.625,152.38,152.31,10.0952]
[1642062096367,46.58111174,152.39,152.32,2.625]
[1642062096568,46.58111174,152.39,152.32,12.4699]
[1642062096968,46.83111174,152.39,152.32,12.4699]
[1642062097967,46.83111174,152.39,152.32,12.7299]
[1642062098771,46.83111174,152.39,152.32,12.4699]
[1642062098969,46.83111174,152.39,152.32,12.7299]
[1642062099570,46.58111174,152.39,152.32,12.7299]
[1642062099770,46.83111174,152.39,152.32,13.81108713]
[1642062099971,46.58111174,152.39,152.33,9.5]
[1642062100172,46.58111174,152.39,152.36,9.8419]
[1642062101573,46.58111174,152.39,152.36,10.1019]
[1642062102772,46.58111174,152.39,152.36,9.8419]
[1642062102972,46.58111174,152.39,152.34,2.625]
[1642062102973,8.68500001,152.38,152.34,2.625]
[1642062103372,8.93500001,152.38,152.34,2.625]
[1642062103575,8.93500001,152.38,152.29,9.5]
[1642062103776,6.31000001,152.38,152.3,30.34289126]
[1642062104073,6.31000001,152.38,152.3,40.04907839]
[1642062104272,6.31000001,152.38,152.3,34.04907839]
[1642062104472,28.96260001,152.38,152.31,9.8453]
[1642062104976,6.31000001,152.38,152.31,15.8453]
[1642062105775,8.68500001,152.38,152.31,15.8453]
[1642062106475,8.68500001,152.38,152.31,25.5953]
[1642062106774,6.06000001,152.38,152.32,2.625]
[1642062107076,6.06000001,152.38,152.31,19.3453]
[1642062107077,6.06000001,152.38,152.29,21.9714]
[1642062107274,2.625,152.37,152.29,19.3464]
[1642062107574,2.875,152.37,152.29,19.3464]
[1642062107775,0.25,152.37,152.29,45.24055626]
[1642062107974,2.875,152.38,152.29,46.32174339]
[1642062108273,0.25,152.38,152.3,2.625]
[1642062108473,46.83111174,152.39,152.31,9.8454]
[1642062108676,46.83111174,152.39,152.31,20.42658713]
[1642062108876,46.58111174,152.39,152.31,19.8554]
[1642062109073,46.58111174,152.39,152.32,1.08118713]
[1642062109276,46.58111174,152.39,152.32,3.70618713]
[1642062109480,46.58111174,152.39,152.32,3.96618713]
[1642062109675,46.58111174,152.39,152.34,9.843]
[1642062110076,46.58111174,152.39,152.34,10.103]
[1642062110276,46.83111174,152.39,152.34,10.103]
[1642062110677,46.83111174,152.39,152.34,9.843]
[1642062110877,46.83111174,152.39,152.32,9.8443]
[1642062111077,2.625,152.38,152.32,9.8443]
[1642062111479,2.875,152.38,152.32,9.8443]
[1642062112476,2.875,152.38,152.32,10.92548713]
[1642062112880,0.25,152.38,152.32,9.8443]
[1642062113075,46.83111174,152.39,152.32,9.8443]
[1642062113476,46.58111174,152.39,152.32,9.8443]
[1642062114779,46.83111174,152.39,152.32,9.8443]
[1642062115377,46.83111174,152.39,152.32,19.3443]
[1642062115984,46.58111174,152.39,152.32,19.3443]
[1642062116988,46.58111174,152.39,152.32,19.6043]
[1642062117787,46.58111174,152.39,152.32,19.8543]
[1642062117987,46.58111174,152.39,152.32,20.93548713]
[1642062118190,46.58111174,152.39,152.32,20.68548713]
[1642062118388,46.58111174,152.39,152.32,19.8543]
[1642062118589,46.58111174,152.39,152.32,20.93548713]
[1642062119191,46.83111174,152.39,152.32,20.93548713]
[1642062119418,46.83111174,152.39,152.32,23.56048713]
[1642062120920,46.83111174,152.39,152.32,23.30048713]
[1642062121119,46.83111174,152.39,152.32,22.2193]
[1642062121319,46.83111174,152.39,152.32,21.9693]
[1642062121522,46.83111174,152.39,152.32,23.30048713]
[1642062121920,46.83111174,152.39,152.32,22.2193]
[1642062122119,46.58111174,152.39,152.32,23.30048713]
[1642062122320,46.58111174,152.39,152.32,23.56048713]
[1642062122520,46.58111174,152.39,152.32,14.06048713]
[1642062122726,46.58111174,152.39,152.32,80.18048713]
[1642062122921,46.58111174,152.39,152.32,20.06048713]
[1642062123121,46.58111174,152.39,152.32,14.06048713]
[1642062123321,46.58111174,152.39,152.32,12.7193]
[1642062123520,46.83111174,152.39,152.32,12.7193]
[1642062123726,46.83111174,152.39,152.32,13.80048713]
[1642062123921,46.58111174,152.39,152.32,13.80048713]
[1642062124328,46.58111174,152.39,152.32,79.92048713]
[1642062124722,46.58111174,152.39,152.32,13.80048713]
[1642062126124,46.58111174,152.39,152.32,13.55048713]
[1642062126326,46.83111174,152.39,152.32,13.55048713]
[1642062126526,46.58111174,152.39,152.32,13.81048713]
[1642062126729,46.58111174,152.39,152.33,9.5]
[1642062127031,46.58111174,152.39,152.36,9.8422]
[1642062127429,46.58111174,152.39,152.36,10.1022]
[1642062127929,46.58111174,152.39,152.36,11.18338713]
[1642062128232,46.58111174,152.39,152.36,10.92338713]
[1642062128828,46.58111174,152.39,152.36,11.17338713]
[1642062129231,46.58111174,152.39,152.36,20.67338713]
[1642062129430,46.58111174,152.39,152.36,23.04838713]
[1642062129631,46.58111174,152.39,152.36,23.55838713]
[1642062131430,46.58111174,152.39,152.36,22.2272]
[1642062131630,46.58111174,152.39,152.36,19.3422]
[1642062131830,46.83111174,152.39,152.36,9.8422]
[1642062132030,46.83111174,152.39,152.33,9.5]
[1642062132233,46.58111174,152.39,152.33,15.75]
[1642062132431,46.83111174,152.39,152.33,16.82981527]
[1642062132631,46.83111174,152.39,152.33,15.75]
[1642062132830,46.83111174,152.39,152.33,9.75]
[1642062133934,46.83111174,152.39,152.35,9.8428]
[1642062134738,46.83111174,152.39,152.33,9.5]
[1642062136337,46.83111174,152.39,152.33,19.3437]
[1642062137239,46.83111174,152.39,152.31,12.47]
[1642062137438,2.625,152.38,152.31,2.625]
[1642062137839,2.875,152.38,152.31,2.625]
[1642062138038,27.2814,152.38,152.29,30.77262368]
[1642062139138,27.2814,152.38,152.27,12.125]
[1642062139343,37.1282,152.38,152.29,9.8464]
[1642062139742,37.1282,152.38,152.27,9.5]
[1642062139944,37.1282,152.38,152.24,417.64655973]
[1642062140139,37.1282,152.38,152.24,441.56893824]
[1642062140342,37.1282,152.38,152.24,36.04737851]
[1642062140542,37.1282,152.38,152.24,33.42237851]
[1642062140945,37.1282,152.38,152.24,33.68237851]
[1642062141345,37.1282,152.38,152.26,9.848]
[1642062141546,9.5,152.37,152.23,2.626]
[1642062141845,9.8503,152.32,152.23,2.626]
[1642062142045,10.1003,152.32,152.23,2.876]
[1642062142247,10.1003,152.32,152.23,2.626]
[1642062142445,29.21383707,152.31,152.23,2.626]
[1642062142646,10.1003,152.32,152.23,2.626]
[1642062143250,10.1003,152.32,152.23,12.4764]
[1642062143849,35.7725,152.32,152.23,12.4764]
[1642062144452,35.7725,152.32,152.23,2.626]
[1642062144953,35.7725,152.32,152.22,92.9]
[1642062145577,35.7725,152.32,152.22,102.7509]
[1642062147080,35.7725,152.32,152.22,92.9]
[1642062148682,66.12,152.31,152.22,92.9]
[1642062148882,9.8532,152.28,152.22,92.9]
[1642062149083,10.1032,152.28,152.22,92.9]
[1642062149986,19.86050559,152.27,152.22,92.9]
[1642062150383,29.96420559,152.27,152.22,92.9]
[1642062158902,29.71420559,152.27,152.22,92.9]
[1642062159101,9.8537,152.27,152.22,92.9]
[1642062159300,95.9239,152.3,152.23,2.626]
[1642062159501,23.5851,152.3,152.23,2.626]
[1642062159701,2.626,152.35,152.23,2.626]
[1642062159900,72.1202,152.34,152.23,2.876]
[1642062160102,30.88165412,152.33,152.23,2.626]
[1642062160602,24.6611,152.32,152.23,2.626]
[1642062160800,24.6611,152.32,152.23,2.876]
[1642062161002,34.5115,152.32,152.23,12.7271]
[1642062161402,34.7615,152.32,152.23,12.4771]
[1642062162804,2.626,152.31,152.23,9.8511]
[1642062163009,12.7274,152.31,152.23,9.8511]
[1642062163206,12.7274,152.31,152.22,92.9]
[1642062164107,12.7274,152.31,152.22,102.4]
[1642062164331,12.7274,152.31,152.22,112.2517]
[1642062164535,10.1014,152.31,152.23,2.626]
[1642062165034,9.8514,152.31,152.23,2.626]
[1642062165334,37.1374,152.32,152.23,2.626]
[1642062166236,37.1374,152.32,152.23,12.477]
[1642062166440,37.3874,152.32,152.23,12.477]
[1642062168839,37.3874,152.32,152.23,9.851]
[1642062169841,37.1374,152.32,152.23,9.851]
[1642062170042,37.3874,152.32,152.23,9.851]
[1642062173051,103.5074,152.32,152.22,94.72803224]
[1642062173253,103.2574,152.32,152.22,94.72803224]
[1642062173453,37.3874,152.32,152.22,94.72803224]
[1642062174250,37.3874,152.32,152.22,92.9]
[1642062175853,103.5074,152.32,152.22,92.9]
[1642062176655,105.38137159,152.32,152.22,92.9]
[1642062178660,114.88137159,152.32,152.22,92.9]
[1642062183364,116.55395462,152.32,152.22,92.9]
[1642062183766,114.88137159,152.32,152.22,92.9]
[1642062184667,116.55395462,152.32,152.22,92.9]
[1642062185466,114.88137159,152.32,152.22,92.9]
[1642062186369,114.63137159,152.32,152.22,92.9]
[1642062186768,116.30395462,152.32,152.22,92.9]
[1642062187476,116.55395462,152.32,152.22,92.9]
[1642062188777,125.03595462,152.32,152.22,92.9]
[1642062189174,176.49795462,152.32,152.22,92.9]
[1642062189575,176.49795462,152.32,152.2,4.45403224]
[1642062190803,9.857,152.24,152.17,4.45403224]
[1642062191003,16.47921766,152.23,152.17,1.82803224]
[1642062191505,16.72921766,152.23,152.17,1.82803224]
[1642062191704,16.72921766,152.23,152.16,1.82803224]
[1642062192304,9.857,152.22,152.16,1.82803224]
[1642062192506,10.107,152.22,152.16,1.82803224]
[1642062195106,10.107,152.22,152.14,94.72803224]
[1642062195307,12.735,152.22,152.14,94.72803224]
[1642062195908,12.735,152.22,152.14,92.9]
[1642062198814,66.12,152.21,152.14,92.9]
[1642062199016,9.8605,152.18,152.14,92.9]
[1642062199213,30.35596843,152.17,152.14,92.9]
[1642062199614,6.06000001,152.16,152.14,92.9]
[1642062199914,3.02780004,152.16,152.14,92.9]
[1642062200117,3.27780004,152.16,152.14,92.9]
[1642062200817,3.03219997,152.15,152.14,92.9]
[1642062201018,3.28219997,152.15,152.14,92.9]
[1642062202119,0.25,152.15,152.14,92.9]
[1642062202719,3.28219997,152.15,152.14,92.9]
[1642062203125,0.25,152.15,152.14,92.9]
[1642062204021,3.27780004,152.15,152.14,92.9]
[1642062204224,0.25,152.15,152.14,92.9]
[1642062205723,3.27780004,152.15,152.14,92.9]
[1642062206726,6.31000001,152.15,152.14,92.9]
[1642062207124,16.17120001,152.15,152.14,92.9]
[1642062208324,6.31000001,152.15,152.14,92.9]
[1642062209353,6.31000001,152.15,152.09,122.14143224]
[1642062209524,6.31000001,152.15,152.09,97.35603224]
[1642062209726,16.17140001,152.15,152.09,97.35603224]
[1642062210132,10.1114,152.15,152.09,97.35603224]
[1642062210426,10.1114,152.15,152.09,94.72803224]
[1642062211328,10.1114,152.15,152.09,92.9]
[1642062211531,10.1114,152.15,152.09,95.529]
[1642062211730,0.25,152.15,152.09,95.529]
[1642062212129,10.1105,152.17,152.09,95.529]
[1642062212531,10.1105,152.17,152.09,105.3892]
[1642062212932,10.1105,152.17,152.09,107.21723224]
[1642062213132,10.1105,152.17,152.09,108.29704751]
[1642062214332,0.25,152.17,152.09,108.29704751]
[1642062214634,2.879,152.18,152.11,9.8589]
[1642062215232,2.879,152.18,152.12,29.77706738]
[1642062215431,9.8587,152.2,152.12,29.77706738]
[1642062215631,2.628,152.23,152.13,12.128]
[1642062215832,2.628,152.24,152.14,9.8565]
[1642062216031,27.0785,152.25,152.14,9.8565]
[1642062216233,27.0785,152.25,152.15,2.628]
[1642062216534,23.72463556,152.24,152.15,2.628]
[1642062216959,23.72463556,152.24,152.15,3.70781527]
[1642062217162,33.58063556,152.24,152.15,10.93601527]
[1642062217562,33.58063556,152.24,152.15,9.8562]
[1642062218062,33.58063556,152.24,152.15,10.93601527]
[1642062218261,33.58063556,152.24,152.15,9.8562]
[1642062218562,9.857,152.22,152.15,9.8562]
[1642062219965,10.107,152.22,152.15,9.8562]
[1642062220663,10.107,152.22,152.14,1.82803224]
[1642062221565,22.7228,152.21,152.14,1.82803224]
[1642062221963,32.8304,152.21,152.14,1.82803224]
[1642062224375,22.9728,152.21,152.14,11.68483224]
[1642062226579,22.9728,152.21,152.15,1.82803224]
[1642062227278,22.9728,152.21,152.14,11.68483224]
[1642062227882,32.8304,152.21,152.14,11.68483224]
[1642062228782,32.8304,152.21,152.14,1.82803224]
[1642062236589,32.8304,152.21,152.13,25.89413224]
[1642062238591,98.9504,152.21,152.13,1.82803224]
[1642062238789,2.628,152.2,152.13,1.82803224]
[1642062238990,9.86,152.18,152.13,1.82803224]
[1642062239188,9.86,152.18,152.12,1.82803224]
[1642062239189,75.98,152.18,152.12,1.82803224]
[1642062239388,76.23,152.18,152.12,1.82803224]
[1642062239588,23.63623622,152.17,152.12,1.82803224]
[1642062239789,49.92143622,152.17,152.12,1.82803224]
[1642062239989,50.17143622,152.17,152.12,1.82803224]
[1642062240189,47.54243622,152.17,152.11,1.82803224]
[1642062240588,9.861,152.16,152.11,1.82803224]
[1642062240790,12.49,152.16,152.11,1.82803224]
[1642062241191,9.861,152.16,152.11,1.82803224]
[1642062241988,10.111,152.16,152.11,1.82803224]
[1642062242291,9.861,152.16,152.11,1.82803224]
[1642062243589,10.111,152.16,152.11,1.82803224]
[1642062245090,66.12,152.15,152.11,1.82803224]
[1642062245490,76.232,152.15,152.1,1.82803224]
[1642062246095,76.232,152.15,152.09,1.82803224]
[1642062246289,23.4395,152.14,152.09,1.82803224]
[1642062246492,89.8095,152.14,152.09,1.82803224]
[1642062246689,9.8632,152.13,152.09,1.82803224]
[1642062247090,10.1132,152.13,152.09,1.82803224]
[1642062247291,66.12,152.12,152.07,1.82803224]
[1642062247492,66.37,152.12,152.07,1.82803224]
[1642062247691,9.8649,152.1,152.07,1.82803224]
[1642062248091,6.06000001,152.09,152.05,1.82803224]
[1642062248494,6.31000001,152.09,152.05,1.82803224]
[1642062249693,82.29530001,152.09,152.05,1.82803224]
[1642062249896,82.29530001,152.09,152.04,4.45703224]
[1642062250094,82.29530001,152.09,152.04,1.82803224]
[1642062250500,16.17530001,152.09,152.04,1.82803224]
[1642062251498,16.17530001,152.09,152.03,1.82803224]
[1642062252096,6.31000001,152.09,152.03,1.82803224]
[1642062252496,6.31000001,152.09,152.01,121.96216877]
[1642062254600,6.31000001,152.09,152.01,132.07746877]
[1642062255200,6.06000001,152.09,152.01,132.07746877]
[1642062256401,6.06000001,152.09,152.02,2.63]
[1642062256602,6.06000001,152.09,152.02,2.88]
[1642062257002,6.06000001,152.09,152.02,12.7448]
[1642062257602,6.31000001,152.09,152.02,12.7448]
[1642062258428,6.06000001,152.09,152.02,12.7448]
[1642062259131,6.31000001,152.09,152.02,12.7448]
[1642062259330,6.31000001,152.09,152.02,18.7448]
[1642062260833,6.06000001,152.09,152.02,18.7448]
[1642062265536,6.06000001,152.09,152.02,12.7448]
[1642062265739,6.31000001,152.09,152.02,2.88]
[1642062266138,6.31000001,152.09,152.02,2.63]
[1642062266938,8.94000001,152.09,152.01,94.72803224]
[1642062267143,16.17640001,152.09,152.01,116.59222682]
[1642062268541,22.7546,152.08,152.01,116.59222682]
[1642062268741,2.63,152.1,152.01,126.45762682]
[1642062268942,2.63,152.11,152.02,2.63]
[1642062269245,27.1779,152.11,152.02,2.63]
[1642062270242,37.0429,152.11,152.02,12.4948]
[1642062270642,37.2929,152.11,152.02,14.32283224]
[1642062272145,37.0429,152.11,152.02,14.32283224]
[1642062272544,34.4129,152.11,152.02,4.45803224]
[1642062273446,34.6629,152.11,152.02,2.63]
[1642062273645,34.6629,152.11,152.01,118.42025906]
[1642062273646,2.63,152.1,152.01,118.42025906]
[1642062273846,12.4955,152.1,152.01,128.28555906]
[1642062274045,12.7455,152.1,152.01,11.69333224]
[1642062274446,24.385,152.09,152.01,11.69333224]
[1642062274649,24.385,152.09,152.01,9.8653]
[1642062274846,24.635,152.09,152.01,9.8653]
[1642062275045,24.635,152.09,152.01,35.92287181]
[1642062275449,34.5013,152.09,152.01,26.05757181]
[1642062275648,2.63,152.08,152.0,4.45803224]
[1642062276046,2.88,152.08,152.0,4.45803224]
[1642062276449,2.88,152.08,152.0,2.63]
[1642062276650,2.88,152.08,151.99,32.09823687]
[1642062277051,2.88,152.08,151.99,30.27020463]
[1642062277052,22.6406,152.07,151.99,30.27020463]
[1642062277453,22.8906,152.07,151.99,30.27020463]
[1642062278353,22.8906,152.07,151.99,32.90020463]
[1642062278754,22.8906,152.07,151.99,43.01690463]
[1642062279555,22.6406,152.07,152.0,1.82803224]
[1642062279758,22.6406,152.07,152.01,2.63]
[1642062279957,22.6406,152.07,152.0,4.45803224]
[1642062280157,22.6406,152.07,152.0,4.70803224]
[1642062280357,22.6406,152.07,152.0,2.88]
[1642062280657,22.8906,152.07,152.0,2.63]
[1642062281258,22.8906,152.07,151.99,44.59493687]
[1642062281860,22.8906,152.07,151.99,42.76690463]
[1642062283861,22.8906,152.07,151.99,40.13690463]
[1642062284261,22.6406,152.07,151.99,40.13690463]
[1642062284460,22.6406,152.07,151.99,40.38690463]
[1642062285462,22.8906,152.07,151.99,40.38690463]
[1642062285763,22.8906,152.07,151.99,40.13690463]
[1642062286464,41.34576623,152.07,151.99,40.13690463]
[1642062286864,41.34576623,152.07,151.99,9.8667]
[1642062287465,41.34576623,152.07,151.99,10.1167]
[1642062287966,41.34576623,152.07,151.99,9.8667]
[1642062289568,41.34576623,152.07,152.0,37.593365]
[1642062290372,41.09576623,152.07,152.0,37.593365]
[1642062291895,41.34576623,152.07,152.0,37.593365]
[1642062294474,22.8906,152.07,152.0,37.593365]
[1642062296377,25.5206,152.07,152.0,37.593365]
[1642062304210,25.2706,152.07,152.0,37.593365]
[1642062305812,25.5206,152.07,152.0,37.593365]
[1642062306109,35.0206,152.07,152.0,37.593365]
[1642062309938,44.8894,152.07,152.0,37.593365]
[1642062312263,111.0094,152.07,152.0,37.593365]
[1642062316075,1.67258303,152.06,152.0,37.593365]
[1642062316275,75.9911,152.04,152.0,37.593365]
[1642062316471,20.86456272,152.03,152.0,37.593365]
[1642062316769,6.06000001,152.02,152.0,37.593365]
[1642062317269,6.31000001,152.02,152.0,37.593365]
[1642062321383,15.81000001,152.02,152.0,37.593365]
[1642062323710,31.63,152.01,152.0,37.593365]
[1642062323917,2.63,152.01,152.0,37.593365]
[1642062324112,2.88,152.01,152.0,37.593365]
[1642062328320,52.0,152.0,151.93,1.82803224]
[1642062328616,66.12,151.98,151.93,1.82803224]
[1642062329017,66.37,151.98,151.93,1.82803224]
[1642062329317,26.49630906,151.97,151.93,1.82803224]
[1642062329519,26.49630906,151.97,151.89,94.72803224]
[1642062329520,54.29410906,151.97,151.89,94.72803224]
[1642062329920,64.16930906,151.97,151.89,94.72803224]
[1642062330520,64.16930906,151.97,151.89,92.9]
[1642062332424,73.66930906,151.97,151.89,92.9]
[1642062332625,139.78930906,151.97,151.89,92.9]
[1642062333626,73.66930906,151.97,151.89,92.9]
[1642062334528,73.68930906,151.97,151.89,92.9]
[1642062334927,9.8767,151.95,151.89,92.9]
[1642062335128,34.5645,151.95,151.89,92.9]
[1642062335326,34.8145,151.95,151.89,92.9]
[1642062335527,24.9378,151.95,151.89,92.9]
[1642062336830,61.32880906,151.97,151.89,92.9]
[1642062337532,34.8325,151.97,151.89,92.9]
[1642062337729,2.652,151.97,151.89,92.9]
[1642062337931,0.02,151.97,151.91,9.8716]
[1642062338130,0.27,151.97,151.91,9.8716]
[1642062338330,0.02,151.97,151.91,9.8716]
[1642062338530,0.02,151.97,151.9,26.3457]
[1642062339733,0.02,151.97,151.9,23.7137]
[1642062339933,2.632,151.96,151.9,23.7137]
[1642062340335,2.882,151.96,151.9,23.7137]
[1642062340533,2.882,151.96,151.87,2.632]
[1642062340733,12.7577,151.96,151.87,2.632]
[1642062341034,66.12,151.95,151.87,2.632]
[1642062341234,2.633,151.94,151.87,2.632]
[1642062341435,27.1562,151.95,151.87,2.632]
[1642062341636,0.25,151.94,151.86,4.46103224]
[1642062341835,0.25,151.94,151.86,14.33603224]
[1642062342039,0.25,151.94,151.86,12.508]
[1642062342447,0.25,151.94,151.86,12.758]
[1642062342639,24.5232,151.95,151.86,12.758]
[1642062344138,24.5232,151.95,151.87,1.07255352]
[1642062344340,24.5232,151.95,151.88,2.633]
[1642062344543,24.5232,151.95,151.87,25.2297]
[1642062345539,24.5232,151.95,151.87,2.633]
[1642062345738,68.753,151.94,151.87,2.633]
[1642062346139,69.003,151.94,151.87,2.633]
[1642062346539,24.6468,151.93,151.87,2.633]
[1642062346839,24.6468,151.93,151.87,2.133]
[1642062347038,24.8968,151.93,151.87,2.133]
[1642062347440,0.25,151.93,151.87,3.20555352]
[1642062347638,0.25,151.93,151.87,2.133]
[1642062347838,0.25,151.93,151.86,2.633]
[1642062348038,26.1577,151.96,151.86,2.633]
[1642062348441,26.4077,151.96,151.86,2.633]
[1642062348639,26.3877,151.96,151.86,2.633]
[1642062349339,36.2633,151.96,151.86,12.5081]
[1642062349542,0.02,151.95,151.86,12.5081]
[1642062349747,2.633,151.94,151.86,9.8751]
[1642062349942,2.883,151.94,151.86,11.70313224]